bitfinex/quotes_ETHUSD_20250422
["timestamp","ask_amount","ask_price","bid_price","bid_amount"]
[1745338646742,5.90717576,1692.9,1692.5,0.796]
[1745338646943,5.90717576,1692.9,1692.3,8.04305408]
[1745338646944,5.90717576,1692.9,1692.3,8.83905408]
[1745338647958,5.90702538,1692.9,1692.3,8.83905408]
[1745338648775,6.72991904,1693.0,1692.3,15.250002]
[1745338648976,5.90702477,1692.9,1692.3,9.28184984]
[1745338649440,8.72485389,1693.0,1692.3,9.28184984]
[1745338649836,8.72485389,1693.0,1692.3,0.796]
[1745338649837,5.90782573,1692.7,1692.3,0.796]
[1745338650042,7.29,1692.6,1692.3,0.796]
[1745338650268,13.19809644,1692.6,1692.1,3.796]
[1745338650581,7.29,1692.6,1692.1,0.796]
[1745338650765,7.29,1692.6,1692.1,2.14406966]
[1745338652044,7.29,1692.6,1692.1,2.59598246]
[1745338652371,7.29,1692.6,1692.4,5.90875474]
[1745338652574,7.29,1692.6,1692.4,11.81737978]
[1745338652775,7.29,1692.6,1692.5,6.70441949]
[1745338652960,6.1,1692.9,1692.5,7.97163394]
[1745338653272,6.1,1692.9,1692.5,7.97142559]
[1745338653462,6.1,1692.9,1692.6,5.90795366]
[1745338653664,6.1,1692.9,1692.5,7.97149803]
[1745338654054,6.1,1692.9,1692.5,0.796]
[1745338654749,6.1,1692.9,1692.5,6.70431625]
[1745338654953,6.1,1692.9,1692.6,5.90797327]
[1745338655160,6.1,1692.9,1692.5,0.796]
[1745338655681,6.1,1692.9,1692.5,6.70423055]
[1745338655882,6.1,1692.9,1692.5,7.9655068]
[1745338656178,7.291,1693.1,1692.6,5.90796628]
[1745338656483,7.291,1693.1,1692.5,19.92371771]
[1745338656897,7.291,1693.1,1692.5,14.0154537]
[1745338657180,7.291,1693.1,1692.6,5.907915]
[1745338657604,7.291,1693.1,1692.5,14.0154537]
[1745338657908,7.291,1693.1,1692.5,19.9237198]
[1745338658082,7.291,1693.1,1692.5,14.0154537]
[1745338658545,7.291,1693.1,1692.6,5.90806621]
[1745338658941,7.291,1693.1,1692.7,5.9076664]
[1745338659146,7.291,1693.1,1692.9,5.90688637]
[1745338659364,7.291,1693.1,1692.9,12.60974423]
[1745338659553,7.291,1693.1,1692.9,6.70285786]
[1745338659759,8.42103377,1693.5,1692.9,6.70285786]
[1745338660065,8.42103377,1693.5,1692.9,7.96380921]
[1745338660650,7.6181579,1693.4,1692.9,7.96380921]
[1745338661063,7.6181579,1693.4,1693.0,5.90661822]
[1745338661263,7.6181579,1693.4,1692.9,7.96379089]
[1745338661672,7.29,1693.4,1692.9,13.87062515]
[1745338661871,7.29,1693.4,1693.0,1.38706252]
[1745338662088,5.90621817,1693.2,1692.7,6.8252]
[1745338662277,0.7617,1693.1,1692.7,6.05]
[1745338662469,0.7617,1693.1,1692.6,0.4423819]
[1745338662676,0.7617,1693.1,1692.5,14.58384979]
[1745338662908,0.7617,1693.1,1692.6,7.3664285]
[1745338663072,0.7617,1693.1,1692.6,13.27434691]
[1745338663269,0.7617,1693.1,1692.6,7.95540339]
[1745338663469,0.7617,1693.1,1692.6,2.04748498]
[1745338664004,0.7617,1693.1,1692.6,7.95551301]
[1745338664201,0.7617,1693.1,1692.7,6.81833041]
[1745338664415,0.32842734,1693.2,1692.7,12.72589007]
[1745338664699,0.32842734,1693.2,1692.8,5.90730892]
[1745338664871,0.32842734,1693.2,1692.7,18.63342805]
[1745338665072,0.32842734,1693.2,1692.7,12.72586839]
[1745338666192,0.7617,1693.3,1692.7,6.02277911]
[1745338666370,0.7617,1693.3,1692.6,8.40721116]
[1745338666567,0.7617,1693.3,1692.7,6.61187911]
[1745338666771,7.29,1693.2,1692.9,6.6819381]
[1745338667205,7.29,1693.2,1692.8,6.49628165]
[1745338667419,7.29,1693.2,1692.9,5.9069993]
[1745338668105,7.29,1693.2,1693.0,5.9063322]
[1745338668486,1.06963377,1693.5,1693.1,5.90599243]
[1745338668808,1.06963377,1693.5,1693.0,3.0]
[1745338668990,1.06963377,1693.5,1693.0,8.9066636]
[1745338669171,1.06963377,1693.5,1693.0,11.04919498]
[1745338669373,8.35863377,1693.5,1693.0,11.04919498]
[1745338670010,8.35863377,1693.5,1693.0,3.0]
[1745338670200,14.2636133,1693.5,1692.9,3.0]
[1745338670399,8.35863377,1693.5,1692.9,3.0]
[1745338670694,8.35863377,1693.5,1692.8,19.87987906]
[1745338670900,12.32565533,1693.5,1692.8,19.87987906]
[1745338671217,12.32565533,1693.5,1692.9,0.5891]
[1745338671380,12.32565533,1693.5,1692.9,6.49610805]
[1745338671716,8.35863377,1693.5,1692.9,3.5891]
[1745338671915,1.06963377,1693.5,1692.9,3.5891]
[1745338672109,7.289,1693.4,1692.9,3.5891]
[1745338672611,7.289,1693.4,1692.9,9.49611973]
[1745338672937,7.289,1693.4,1692.9,3.5891]
[1745338674195,8.71535884,1693.4,1692.9,3.5891]
[1745338675508,7.289,1693.3,1692.9,3.5891]
[1745338676919,0.30793377,1693.5,1693.4,5.90527931]
[1745338677120,0.7617,1693.7,1693.4,8.96418937]
[1745338677320,0.7617,1693.7,1693.4,9.49435221]
[1745338677503,0.7617,1693.7,1693.4,0.5891]
[1745338678030,5.9047811,1693.6,1693.1,0.5891]
[1745338678185,6.66673049,1693.5,1693.1,0.5891]
[1745338678513,13.93173049,1693.5,1692.9,0.5891]
[1745338678729,5.90543034,1693.4,1692.9,0.5891]
[1745338680479,0.7738,1693.3,1692.9,0.5891]
[1745338680846,5.90650809,1693.1,1692.9,0.5891]
[1745338681136,5.90667454,1693.0,1692.6,4.89822668]
[1745338681287,0.55,1693.2,1692.5,0.8131]
[1745338681486,0.55,1693.2,1692.0,5.91015801]
[1745338681487,5.90777507,1692.7,1692.0,0.8131]
[1745338681886,6.68200096,1692.6,1692.1,0.5891]
[1745338682120,5.90843359,1692.5,1692.1,0.5891]
[1745338682295,5.90865158,1692.5,1692.0,6.8631]
[1745338682496,5.90865158,1692.5,1692.1,3.0]
[1745338682699,5.90865158,1692.5,1692.0,8.1807033]
[1745338683091,5.90865158,1692.5,1692.0,7.9567033]
[1745338683300,6.68193244,1692.6,1692.0,1.02230692]
[1745338683522,5.90923531,1692.3,1692.0,1.02230692]
[1745338683888,11.81865686,1692.3,1692.0,0.43320692]
[1745338684089,13.17289606,1692.4,1691.8,0.5891]
[1745338684300,13.17289959,1692.4,1691.8,0.5891]
[1745338684499,13.17289959,1692.4,1691.8,1.05957423]
[1745338684907,13.17289959,1692.4,1691.8,0.5891]
[1745338685309,5.90936875,1692.3,1691.8,0.5891]
[1745338685709,19.08204491,1692.4,1691.8,0.5891]
[1745338685919,5.90912706,1692.3,1691.8,0.5891]
[1745338686321,5.90912706,1692.3,1691.7,4.11564232]
[1745338686528,19.08201039,1692.4,1691.8,0.41156423]
[1745338686834,7.264,1692.4,1692.1,3.0]
[1745338687018,0.7738,1692.6,1691.9,3.8131]
[1745338687207,5.90850387,1692.5,1691.9,9.83587911]
[1745338687403,5.90850387,1692.5,1692.0,0.98358791]
[1745338687604,5.90901977,1692.4,1691.9,0.8131]
[1745338687961,5.90930995,1692.3,1691.7,7.57406841]
[1745338688333,5.90930995,1692.3,1691.8,3.0]
[1745338688544,5.90886648,1692.4,1691.8,3.0]
[1745338689203,5.90919066,1692.3,1691.8,3.0]
[1745338689402,5.90919066,1692.3,1691.8,4.05740684]
[1745338689839,11.81794802,1692.4,1691.8,4.05740684]
[1745338690040,5.90915825,1692.3,1691.8,4.05740684]
[1745338690245,5.90886648,1692.4,1691.8,4.05740684]
[1745338690460,5.90850002,1692.5,1691.8,9.96822273]
[1745338690604,13.94806864,1692.6,1691.8,9.96822273]
[1745338690605,8.0398,1692.6,1691.9,7.89179633]
[1745338690804,7.266,1692.6,1692.2,3.0]
[1745338693411,7.266,1692.6,1692.4,0.8187]
[1745338693743,0.7738,1692.9,1692.4,0.8187]
[1745338693942,8.07569041,1692.9,1692.4,0.8187]
[1745338694154,5.90738184,1692.8,1692.4,0.8187]
[1745338694706,5.90760168,1692.8,1692.4,0.8187]
[1745338695237,8.07577743,1692.9,1692.4,0.8187]
[1745338695438,0.7738,1692.9,1692.4,0.8187]
[1745338695732,13.48180706,1693.0,1692.4,0.8187]
[1745338695941,13.17382998,1693.0,1692.4,3.8187]
[1745338696922,5.90682998,1693.0,1692.4,3.8187]
[1745338697122,13.17382998,1693.0,1692.4,3.8187]
[1745338697324,7.267,1693.0,1692.4,5.39373896]
[1745338697533,5.90755034,1692.8,1692.4,0.8187]
[1745338697739,5.90774744,1692.7,1692.4,0.8187]
[1745338697935,5.90813556,1692.6,1692.2,4.84777319]
[1745338698151,5.90854181,1692.5,1692.2,1.02907319]
[1745338698961,5.90854181,1692.5,1692.2,0.43997319]
[1745338699269,5.90854181,1692.5,1692.0,10.4578]
[1745338699411,5.90854181,1692.5,1692.0,11.60326223]
[1745338699613,13.17654181,1692.5,1692.0,2.55326223]
[1745338699941,5.90932667,1692.3,1691.9,0.99682227]
[1745338700150,5.90946696,1692.2,1691.8,1.4078]
[1745338700307,6.69416199,1692.3,1691.7,3.43564698]
[1745338700308,5.91011137,1692.1,1691.7,3.43564698]
[1745338700509,5.91070698,1691.9,1691.6,6.05]
[1745338700711,6.69560698,1691.9,1691.6,6.05]
[1745338701347,0.7849,1691.9,1691.6,6.05]
[1745338701545,5.86086949,1691.8,1691.6,6.05]
[1745338701848,6.69547565,1691.9,1691.5,0.8187]
[1745338702342,0.7849,1691.9,1691.5,0.8187]
[1745338702547,0.7849,1692.1,1691.5,9.84147911]
[1745338702716,7.269,1692.0,1691.6,0.98414791]
[1745338703066,7.269,1692.0,1691.6,1.41890997]
[1745338703569,7.269,1692.0,1691.7,0.5891]
[1745338706873,7.242,1692.2,1691.8,0.7925]
[1745338707080,7.242,1692.2,1691.9,3.0]
[1745338711078,7.242,1692.2,1692.0,6.49922924]
[1745338711379,19.487,1692.4,1692.1,0.7925]
[1745338711792,7.242,1692.8,1692.4,0.7925]
[1745338712093,7.242,1692.8,1692.1,1.3816]
[1745338712275,13.95316547,1692.8,1692.1,10.29130987]
[1745338712452,13.95316547,1692.8,1692.1,10.7296782]
[1745338712647,13.95316547,1692.8,1692.1,4.81996833]
[1745338712854,13.95316547,1692.8,1692.1,10.72975635]
[1745338713159,13.95316547,1692.8,1692.1,10.72976623]
[1745338713364,8.04565,1692.8,1692.2,4.66207662]
[1745338713559,7.242,1692.8,1692.3,0.7925]
[1745338714482,7.242,1692.8,1692.3,3.7925]
[1745338714784,7.242,1692.8,1692.3,15.61033544]
[1745338714960,7.242,1692.8,1692.5,3.0]
[1745338715356,7.242,1692.8,1692.5,3.89087491]
[1745338717064,7.242,1692.8,1692.4,3.0]
[1745338717262,7.242,1692.8,1692.3,3.7925]
[1745338717485,13.14947042,1692.8,1692.3,0.7925]
[1745338717999,13.108981,1693.1,1692.4,3.0]
[1745338718154,7.241,1692.8,1692.5,3.0]
[1745338718354,7.241,1692.8,1692.6,0.7925]
[1745338719069,7.241,1692.9,1692.6,0.7925]
[1745338720598,0.30799165,1693.1,1692.6,0.7925]
[1745338720770,7.241,1693.2,1692.8,8.9072664]
[1745338720965,7.241,1693.2,1693.0,0.7925]
[1745338721165,5.90506159,1693.5,1693.0,1.24258853]
[1745338721473,7.241,1693.4,1693.0,1.24258853]
[1745338721673,8.55559678,1693.4,1692.7,0.7925]
[1745338721903,6.70060694,1693.2,1692.7,0.7925]
[1745338722106,12.60683476,1693.2,1692.7,0.7925]
[1745338722404,12.60691282,1693.2,1692.7,0.7925]
[1745338722578,6.70060694,1693.2,1692.7,0.7925]
[1745338722778,7.96124711,1693.2,1692.7,0.7925]
[1745338723192,7.96124711,1693.2,1692.7,1.2337936]
[1745338724703,0.7945,1693.2,1692.7,4.2337936]
[1745338725075,6.70050424,1693.2,1692.7,4.2337936]
[1745338725715,5.90647739,1693.1,1692.8,0.18440774]
[1745338725882,12.60680366,1693.2,1692.8,0.18440774]
[1745338726083,6.70050424,1693.2,1692.8,0.18440774]
[1745338726329,2.08593019,1693.2,1692.9,0.5891]
[1745338726622,5.90642567,1693.1,1692.9,0.5891]
[1745338727207,7.99211542,1693.2,1692.8,0.5891]
[1745338727507,5.90647894,1693.1,1692.8,0.5891]
[1745338727679,7.99211542,1693.2,1692.8,0.5891]
[1745338727879,0.79921154,1693.1,1692.8,0.5891]
[1745338728116,6.70152345,1692.9,1692.3,1.3816]
[1745338728312,19.05515431,1692.8,1692.3,1.3816]
[1745338728481,13.14750497,1692.8,1692.5,0.5891]
[1745338728681,15.13242388,1692.8,1692.5,0.5891]
[1745338729418,15.13247818,1692.8,1692.4,0.5891]
[1745338729623,21.04013842,1692.8,1692.4,0.5891]
[1745338729921,5.90776865,1692.7,1692.4,0.5891]
[1745338730121,15.13247818,1692.8,1692.4,0.5891]
[1745338730326,7.24,1692.8,1692.4,0.5891]
[1745338730827,13.14739952,1692.8,1692.4,0.5891]
[1745338730989,7.24,1692.8,1692.4,0.5891]
[1745338731190,13.14748894,1692.8,1692.4,0.5891]
[1745338731808,7.24,1692.8,1692.4,0.5891]
[1745338732122,7.24,1692.8,1692.4,1.32205517]
[1745338732335,7.24,1692.8,1692.5,0.7735403]
[1745338732513,7.50023894,1693.1,1692.5,6.78057193]
[1745338732824,7.24,1692.8,1692.5,6.72149195]
[1745338733020,7.24,1692.8,1692.6,0.1844403]
[1745338733426,7.964,1692.8,1692.4,0.5891]
[1745338733736,7.24,1692.8,1692.4,0.5891]
[1745338734022,7.24,1692.8,1692.5,0.77353677]
[1745338734723,7.24,1692.8,1692.6,0.18443677]
[1745338735220,7.50018508,1693.1,1692.5,6.53705165]
[1745338735426,13.14684973,1693.0,1692.5,6.53705165]
[1745338736200,13.14684973,1693.0,1692.6,0.18442968]
[1745338736710,13.14674474,1693.0,1692.6,0.18442968]
[1745338736925,7.24,1693.0,1692.6,0.85657781]
[1745338737134,7.24,1693.0,1692.7,0.18442968]
[1745338737507,7.212,1693.0,1692.7,0.18442968]
[1745338737708,7.212,1693.0,1692.8,0.18442968]
[1745338738203,25.39099154,1693.2,1692.8,0.18442968]
[1745338738409,6.73973489,1693.0,1692.3,0.7819]
[1745338738744,5.90751351,1692.8,1692.3,0.7819]
[1745338739039,5.90751351,1692.8,1692.4,0.1844512]
[1745338739619,5.90751351,1692.8,1692.5,0.1844512]
[1745338739818,5.90751351,1692.8,1692.6,0.1844512]
[1745338740019,7.0889833,1692.8,1692.6,0.1844512]
[1745338740329,12.99662381,1692.8,1692.3,1.371]
[1745338740664,7.0889833,1692.8,1692.3,1.371]
[1745338740825,5.90807524,1692.6,1692.4,0.1844576]
[1745338741031,7.212,1692.5,1692.4,0.1844576]
[1745338741345,13.84161949,1692.5,1692.4,0.1844576]
[1745338741705,5.90816827,1692.6,1692.4,0.1844576]
[1745338741927,13.12041949,1692.5,1692.1,6.97007162]
[1745338742136,5.90877109,1692.4,1692.1,0.5891]
[1745338742520,5.90877109,1692.4,1692.2,0.1844865]
[1745338742848,6.74201776,1692.3,1692.2,0.1844865]
[1745338743016,8.00709665,1692.3,1692.2,0.1844865]
[1745338743651,5.90992471,1692.1,1691.9,0.7819]
[1745338743939,11.81929918,1692.2,1691.9,0.7819]
[1745338744150,5.90987302,1692.1,1692.0,0.1845102]
[1745338744513,5.90954743,1692.2,1692.0,0.1845102]
[1745338744713,5.90927599,1692.3,1692.0,0.1845102]
[1745338745212,5.90894807,1692.4,1692.0,3.87594638]
[1745338745410,7.213,1692.4,1692.1,6.13246185]
[1745338745613,13.12196856,1692.4,1692.1,6.13246185]
[1745338745849,5.90932101,1692.3,1692.1,0.1845102]
[1745338746047,5.90960138,1692.2,1691.9,0.7819]
[1745338746548,5.91016548,1692.0,1691.8,1.02376327]
[1745338746713,5.90998484,1692.1,1691.8,1.02376327]
[1745338748026,7.214,1692.0,1691.8,1.02376327]
[1745338748229,13.12417922,1692.0,1691.8,1.02376327]
[1745338748547,7.214,1692.0,1691.8,1.02376327]
[1745338748842,7.214,1692.0,1691.8,6.97171492]
[1745338749220,7.214,1692.0,1691.9,0.18451874]
[1745338750354,6.1,1692.5,1692.1,0.7665]
[1745338750560,0.30797527,1692.6,1692.3,5.94795165]
[1745338751621,7.214,1692.7,1692.3,6.53855165]
[1745338751949,7.214,1692.7,1692.4,0.18445779]
[1745338752162,7.214,1692.7,1692.3,6.53855165]
[1745338752326,0.3,1692.6,1692.3,7.19240681]
[1745338753249,0.3,1692.6,1692.4,0.18445876]
[1745338753452,0.3,1692.6,1692.4,0.24354262]
[1745338753643,0.3,1692.6,1692.5,9.92811041]
[1745338754136,0.3,1692.6,1692.5,10.51871041]
[1745338754322,0.3,1692.6,1692.5,11.57058145]
[1745338754723,0.3,1692.6,1692.5,17.47900094]
[1745338755224,0.3,1692.6,1692.5,11.57058145]
[1745338756355,0.3,1692.6,1692.5,10.97998145]
[1745338756927,0.3,1692.6,1692.5,16.88840094]
[1745338757449,0.3,1692.6,1692.5,10.97998145]
[1745338758262,0.3,1692.6,1692.5,3.98015876]
[1745338758425,0.3,1692.6,1692.5,0.18445876]
[1745338762761,0.3,1692.6,1692.5,15.89560606]
[1745338762963,0.3,1692.6,1692.5,15.8365299]
[1745338763730,7.212,1693.2,1693.1,5.94795165]
[1745338764233,7.212,1693.2,1693.1,6.13241041]
[1745338764457,7.212,1693.2,1693.1,9.13241041]
[1745338764858,7.02155623,1693.5,1693.2,3.0]
[1745338764859,1.1165018,1693.5,1693.2,3.0]
[1745338765033,0.3080018,1693.5,1693.3,5.94795165]
[1745338766233,0.3080018,1693.5,1693.2,5.94795165]
[1745338766469,7.212,1693.6,1693.4,8.94795165]
[1745338767383,25.69665021,1693.9,1693.4,8.94795165]
[1745338767384,20.55817497,1693.9,1693.5,3.0]
[1745338767557,0.30797497,1693.9,1693.8,5.94795165]
[1745338768073,0.30797497,1693.9,1693.5,9.05]
[1745338768074,0.7652,1693.8,1693.5,14.99795165]
[1745338768231,6.21151118,1693.9,1693.5,14.99795165]
[1745338768434,6.52505438,1693.8,1693.5,9.05]
[1745338768679,7.181,1693.7,1693.5,6.05]
[1745338769333,7.181,1693.7,1693.6,5.94795165]
[1745338769868,7.181,1693.7,1693.6,8.94795165]
[1745338771362,7.181,1693.7,1693.6,5.94795165]
[1745338771544,8.48949309,1693.7,1693.6,5.94795165]
[1745338771745,8.48949309,1693.7,1693.5,6.05]
[1745338772162,8.48949309,1693.7,1693.6,5.94795165]
[1745338773139,7.181,1693.7,1693.6,5.94795165]
[1745338773641,7.181,1693.7,1693.6,8.94795165]
[1745338774373,13.08541557,1693.7,1693.3,9.77025165]
[1745338775370,7.181,1693.7,1693.3,9.77025165]
[1745338775771,7.181,1693.7,1693.5,5.94795165]
[1745338776145,7.181,1693.7,1693.6,3.0]
[1745338776858,7.181,1693.7,1693.6,3.826]
[1745338781043,7.181,1693.7,1693.6,4.4166]
[1745338781644,7.181,1693.7,1693.6,4.60091725]
[1745338782146,7.181,1693.7,1693.6,4.4166]
[1745338782445,7.181,1693.7,1693.6,4.60091676]
[1745338782774,7.8991,1693.7,1693.6,0.18431676]
[1745338782981,7.8991,1693.7,1693.5,5.94795165]
[1745338783890,7.181,1693.7,1693.5,5.94795165]
[1745338784246,7.181,1693.7,1693.5,3.0]
[1745338784495,7.181,1693.7,1693.5,9.53855165]
[1745338785247,7.48697497,1693.9,1693.5,9.53855165]
[1745338785450,13.39062173,1693.9,1693.6,0.18432514]
[1745338786179,15.39669939,1693.9,1693.5,9.98850032]
[1745338786477,9.49305263,1693.9,1693.5,9.98850032]
[1745338786694,0.7668,1694.2,1693.8,3.0]
[1745338786902,7.179,1694.1,1693.9,5.94795165]
[1745338787889,7.179,1694.1,1693.9,6.53855165]
[1745338788593,7.179,1694.2,1694.0,0.826]
[1745338788747,7.179,1694.2,1694.1,8.94795165]
[1745338789151,7.179,1694.2,1694.0,7.42357655]
[1745338789584,7.179,1694.2,1694.1,0.18427352]
[1745338790576,7.178,1694.3,1694.1,0.18427352]
[1745338790780,7.178,1694.3,1694.0,7.42357655]
[1745338791104,15.8221216,1694.3,1693.9,0.5906]
[1745338791272,15.8221216,1694.3,1693.9,6.53855165]
[1745338791756,15.8221216,1694.3,1694.0,0.77489073]
[1745338792456,15.8221216,1694.3,1694.0,0.5906]
[1745338793494,9.91978,1694.3,1694.1,6.13223869]
[1745338793788,7.66126885,1694.2,1694.1,0.18428704]
[1745338793955,5.90306821,1694.1,1693.7,5.94795165]
[1745338794156,11.80700474,1694.0,1693.7,5.94795165]
[1745338794369,11.80703068,1694.0,1693.8,0.18432298]
[1745338794575,7.178,1693.9,1693.8,0.18432298]
[1745338796493,7.178,1693.9,1693.8,3.8034543]
[1745338796700,7.178,1693.9,1693.8,0.18432298]
[1745338797884,7.178,1693.9,1693.8,6.13227463]
[1745338801199,7.178,1693.9,1693.8,9.13227463]
[1745338801700,32.25466411,1694.4,1693.8,9.13227463]
[1745338801879,7.147,1694.3,1694.2,5.94795165]
[1745338802670,7.147,1694.3,1694.2,6.13227463]
[1745338803005,16.49084247,1694.3,1694.2,0.18432298]
[1745338803398,16.81985656,1694.3,1694.2,0.18432298]
[1745338803714,5.90321696,1694.0,1693.6,6.53855165]
[1745338803896,5.90284484,1694.1,1693.8,5.94795165]
[1745338804274,5.90268947,1694.2,1693.8,5.94795165]
[1745338804532,16.49104514,1694.3,1694.0,5.94795165]
[1745338804916,7.9267,1694.3,1694.0,5.94795165]
[1745338805105,7.9267,1694.3,1694.1,0.18430648]
[1745338805693,0.7797,1694.3,1694.2,0.18430648]
[1745338805897,7.147,1694.3,1694.2,6.13225813]
[1745338806701,7.147,1694.3,1694.2,0.18430648]
[1745338806930,17.08103824,1694.3,1694.2,0.18430648]
[1745338807131,11.17889577,1694.3,1694.2,0.18430648]
[1745338807439,26.62,1694.4,1694.2,6.13225813]
[1745338807901,26.62,1694.4,1694.3,0.18430648]
[1745338808101,26.62,1694.4,1694.3,3.95920648]
[1745338809044,6.67991366,1694.9,1694.3,3.95920648]
[1745338809224,7.147,1694.8,1694.7,5.94795165]
[1745338809592,7.147,1694.8,1694.7,6.13225813]
[1745338810596,0.30759662,1695.1,1694.7,10.52038394]
[1745338810942,26.616,1695.2,1695.0,3.0]
[1745338811240,26.616,1695.2,1695.1,0.18430648]
[1745338811438,26.616,1695.2,1695.0,3.0]
[1745338811805,26.616,1695.2,1694.8,3.0]
[1745338812034,26.616,1695.2,1694.9,5.94795165]
[1745338812917,26.31992961,1695.2,1694.9,5.94795165]
[1745338813214,19.17392961,1695.2,1695.1,8.94795165]
[1745338813425,26.31892961,1695.2,1695.1,8.94795165]
[1745338814554,0.30753252,1695.5,1695.2,3.0]
[1745338814710,0.30753252,1695.5,1695.4,5.94795165]
[1745338814907,7.145,1695.6,1695.4,6.76925165]
[1745338815110,0.4060506,1695.7,1695.5,3.0]
[1745338815312,0.4060506,1695.7,1695.6,5.94795165]
[1745338815517,0.4060506,1695.7,1695.6,6.76925165]
[1745338815790,0.4060506,1695.7,1695.6,12.66686901]
[1745338815955,0.4060506,1695.7,1695.6,15.90991939]
[1745338816157,0.4060506,1695.7,1695.6,18.33172609]
[1745338816316,0.4060506,1695.7,1695.6,12.43410873]
[1745338816784,0.4060506,1695.7,1695.6,18.33172609]
[1745338817065,19.464,1696.4,1696.0,3.0]
[1745338817222,22.20184,1696.4,1695.9,3.0]
[1745338817421,0.7714,1696.2,1695.6,12.08437189]
[1745338817730,7.143,1696.3,1695.9,3.8213]
[1745338817930,13.03830262,1696.3,1695.9,3.8213]
[1745338818127,7.143,1696.3,1695.9,3.8213]
[1745338818329,7.143,1696.3,1696.0,6.00270679]
[1745338818960,19.464,1696.4,1696.1,3.0]
[1745338819316,0.30738743,1696.5,1696.3,3.0]
[1745338819976,0.30738743,1696.5,1696.4,6.00270679]
[1745338820131,5.89116809,1697.5,1696.6,6.71526419]
[1745338820132,26.596,1697.3,1696.6,6.71526419]
[1745338820447,0.30731666,1697.1,1696.6,0.97152642]
[1745338820648,5.89349252,1696.8,1696.4,1.26234911]
[1745338820844,5.89398162,1696.7,1696.3,3.0]
[1745338821162,5.89452888,1696.5,1696.0,0.8213]
[1745338821673,5.89428826,1696.6,1696.0,0.8213]
[1745338821674,5.8943829,1696.6,1696.0,6.82400679]
[1745338821850,6.48407408,1696.5,1696.0,6.82400679]
[1745338822380,0.7714,1696.7,1696.2,6.00270679]
[1745338822580,6.66538503,1696.7,1696.2,6.00270679]
[1745338822752,0.7714,1696.7,1696.2,6.00270679]
[1745338823146,5.89518363,1696.3,1696.0,0.8213]
[1745338823357,7.14,1696.3,1695.9,0.44149095]
[1745338823534,8.44349763,1696.3,1695.8,3.8213]
[1745338823738,9.21489763,1696.3,1695.8,3.8213]
[1745338824138,9.21489763,1696.3,1695.8,0.8213]
[1745338824467,9.21489763,1696.3,1695.8,3.8213]
[1745338824983,7.14,1696.3,1696.0,3.0]
[1745338825680,7.14,1696.3,1696.2,3.0]
[1745338826174,7.139,1696.5,1696.2,3.44511407]
[1745338826945,13.03352982,1696.5,1696.2,3.0]
[1745338827141,7.139,1696.5,1696.2,3.0]
[1745338827746,7.139,1696.5,1696.2,3.7973]
[1745338828238,7.139,1696.5,1696.1,6.00270679]
[1745338828239,5.89503591,1696.4,1696.0,3.7973]
[1745338828446,5.89503591,1696.4,1696.0,1.2342052]
[1745338828654,13.7475492,1696.5,1696.0,1.2342052]
[1745338828655,13.74756126,1696.5,1696.0,1.2342052]
[1745338828855,5.89487269,1696.4,1696.0,4.2342052]
[1745338829052,0.7793,1696.3,1695.8,4.3879]
[1745338829341,5.89598265,1696.1,1695.8,3.0]
[1745338829553,5.89598265,1696.1,1695.7,6.05]
[1745338829554,13.00373117,1696.2,1695.6,0.7973]
[1745338830077,5.8959862,1696.1,1695.6,3.7973]
[1745338830847,5.8966927,1695.9,1695.6,0.7973]
[1745338830990,6.48682884,1695.8,1695.3,12.85000679]
[1745338831192,5.89698437,1695.8,1695.3,12.85000679]
[1745338831394,11.79422917,1695.8,1695.3,12.85000679]
[1745338831595,13.00545881,1695.7,1695.3,6.8473]
[1745338831801,7.108,1695.7,1695.4,3.0]
[1745338831961,7.108,1695.7,1695.4,0.22590802]
[1745338832164,13.00536966,1695.7,1695.4,0.22590802]
[1745338832565,8.99824522,1695.7,1695.4,0.22590802]
[1745338832765,7.108,1695.7,1695.4,0.22590802]
[1745338832980,7.108,1695.7,1695.4,3.22590802]
[1745338833298,0.7793,1695.6,1695.4,0.22590802]
[1745338833488,0.7793,1695.9,1695.4,3.0]
[1745338833675,7.108,1695.8,1695.5,0.21236113]
[1745338835103,7.89673,1695.8,1695.5,0.21236113]
[1745338835268,13.7937974,1695.8,1695.5,0.21236113]
[1745338835608,5.89730033,1695.7,1695.2,4.24078616]
[1745338835803,5.89730033,1695.7,1695.6,0.21133832]
[1745338835974,5.89730033,1695.7,1695.2,4.24078616]
[1745338836301,11.79483236,1695.7,1695.2,2.92919546]
[1745338836511,19.99854117,1695.8,1695.3,3.21325641]
[1745338836693,5.89727576,1695.7,1695.3,3.21325641]
[1745338837505,19.99854328,1695.8,1695.3,3.21325641]
[1745338837819,14.10137356,1695.8,1695.3,3.21325641]
[1745338838018,7.4155068,1695.8,1695.3,15.1144656]
[1745338838381,7.4155068,1695.8,1695.5,12.69786316]
[1745338838507,6.67539988,1696.1,1695.5,4.3879]
[1745338838712,6.67539988,1696.1,1695.6,0.39609816]
[1745338838915,6.67539988,1696.1,1695.6,0.87449798]
[1745338839294,0.7793,1696.1,1695.7,0.18410236]
[1745338839494,6.67519969,1696.1,1695.7,0.18410236]
[1745338840001,6.67519969,1696.1,1695.8,0.39481982]
[1745338840002,5.89657409,1695.9,1695.8,0.39481982]
[1745338840618,5.89657409,1695.9,1695.8,0.21071746]
[1745338840934,1.17929619,1695.9,1695.8,0.21071746]
[1745338841097,1.17929619,1695.9,1695.6,6.05]
[1745338841098,0.7793,1696.1,1695.7,3.0]
[1745338841303,6.67528488,1696.1,1695.8,0.20984084]
[1745338842144,0.7793,1696.1,1695.8,0.20984084]
[1745338842346,6.67530618,1696.1,1695.8,0.20984084]
[1745338842554,5.89629944,1696.0,1695.8,0.20984084]
[1745338843022,8.08448195,1696.1,1695.8,0.20984084]
[1745338843743,0.30745151,1696.2,1695.9,1.0101021]
[1745338844057,0.30745151,1696.2,1696.0,3.0]
[1745338844210,0.30745151,1696.2,1696.1,0.1841021]
[1745338844418,26.556,1696.4,1696.1,0.39251882]
[1745338844720,26.556,1696.4,1696.2,0.1841021]